[Event "Titled Tuesday Blitz November 08 Early 2022"]
[White "Taboas Rodriguez, Daniel"]
[Black "Fiedorek, Michal"]
[WhiteFideId "2208466"]
[BlackFideId "1199528"]
[WhiteElo "2329"]
[BlackElo "2201"]
[Result "0-1"]
[Round "06"]
[TimeControl "180+1"]
[Date "2022.11.09"]
[WhiteClock "0:00:21"]
[BlackClock "0:00:05"]

1. d4 {[%clk 0:02:59]}  Nf6 {[%clk 0:02:55]} 2. Nf3 {[%clk 0:02:59]}  e6 {[%clk 0:02:54]} 3. c4 {[%clk 0:02:59]}  b6 {[%clk 0:02:53]} 4. Nc3 {[%clk 0:02:59]}  Bb4 {[%clk 0:02:52]} 5. Qc2 {[%clk 0:02:59]}  Bb7 {[%clk 0:02:48]} 6. a3 {[%clk 0:02:59]}  Bxc3+ {[%clk 0:02:31]} 7. Qxc3 {[%clk 0:03:00]}  O-O {[%clk 0:02:18]} 8. g3 {[%clk 0:02:59]}  d5 {[%clk 0:02:16]} 9. Bg2 {[%clk 0:02:59]}  Ne4 {[%clk 0:02:09]} 10. Qc2 {[%clk 0:02:58]}  Nd7 {[%clk 0:02:03]} 11. O-O {[%clk 0:02:58]}  c5 {[%clk 0:02:02]} 12. dxc5 {[%clk 0:02:49]}  bxc5 {[%clk 0:01:57]} 13. Rd1 {[%clk 0:02:40]}  Qe7 {[%clk 0:01:38]} 14. cxd5 {[%clk 0:02:30]}  exd5 {[%clk 0:01:37]} 15. Bf4 {[%clk 0:02:30]}  Rac8 {[%clk 0:01:31]} 16. Rac1 {[%clk 0:02:30]}  Rfd8 {[%clk 0:01:28]} 17. Qa4 {[%clk 0:02:29]}  Bc6 {[%clk 0:01:17]} 18. Qc2 {[%clk 0:02:17]}  Nb6 {[%clk 0:01:16]} 19. Ne5 {[%clk 0:02:15]}  Bb7 {[%clk 0:01:13]} 20. Nd3 {[%clk 0:01:53]}  c4 {[%clk 0:01:05]} 21. Nb4 {[%clk 0:01:52]}  d4 {[%clk 0:01:02]} 22. Bf3 {[%clk 0:01:39]}  a5 {[%clk 0:00:59]} 23. Na2 {[%clk 0:01:39]}  g5 {[%clk 0:00:42]} 24. Bd2 {[%clk 0:01:38]}  d3 {[%clk 0:00:19]} 25. exd3 {[%clk 0:01:06]}  cxd3 {[%clk 0:00:19]} 26. Qb3 {[%clk 0:01:06]}  Nxd2 {[%clk 0:00:18]} 27. Rxd2 {[%clk 0:01:06]}  Rxc1+ {[%clk 0:00:18]} 28. Nxc1 {[%clk 0:01:06]}  Bxf3 {[%clk 0:00:17]} 29. Nxd3 {[%clk 0:01:01]}  Rxd3 {[%clk 0:00:12]} 30. Qxd3 {[%clk 0:01:01]}  Qe1+ {[%clk 0:00:12]} 31. Qf1 {[%clk 0:01:02]}  Qxd2 {[%clk 0:00:12]} 32. b4 {[%clk 0:01:02]}  axb4 {[%clk 0:00:12]} 33. axb4 {[%clk 0:01:03]}  Qxb4 {[%clk 0:00:13]} 34. h3 {[%clk 0:01:01]}  Nd5 {[%clk 0:00:13]} 35. Kh2 {[%clk 0:01:01]}  Qe4 {[%clk 0:00:13]} 36. Qc1 {[%clk 0:00:59]}  h6 {[%clk 0:00:12]} 37. Qc8+ {[%clk 0:00:59]}  Kg7 {[%clk 0:00:12]} 38. Qc1 {[%clk 0:01:00]}  Qf5 {[%clk 0:00:09]} 39. Qb2+ {[%clk 0:00:59]}  Nf6 {[%clk 0:00:07]} 40. Qd2 {[%clk 0:01:00]}  h5 {[%clk 0:00:07]} 41. Qd4 {[%clk 0:00:58]}  g4 {[%clk 0:00:07]} 42. hxg4 {[%clk 0:00:54]}  hxg4 {[%clk 0:00:07]} 43. Kg1 {[%clk 0:00:38]}  Qh5 {[%clk 0:00:07]} 44. Qxg4+ {[%clk 0:00:20]}  Qxg4 {[%clk 0:00:06]} 45. Kf1 {[%clk 0:00:21]}  Qe4 {[%clk 0:00:05]} 46. Kg1 {[%clk 0:00:20]}  Qe1+ {[%clk 0:00:05]} 47. Kh2 {[%clk 0:00:21]}  Qh1# {[%clk 0:00:05]} 0-1


[Site "https://www.chess.com"]

[Event "Titled Tuesday Blitz November 08 Early 2022"]
[White "Tharushi, T H D Niklesha"]
[Black "Adnan, Habib"]
[WhiteFideId "9918264"]
[BlackFideId "11202270"]
[WhiteElo "1596"]
[BlackElo "2110"]
[Result "0-1"]
[Round "06"]
[TimeControl "180+1"]
[Date "2022.11.09"]
[WhiteClock "0:02:13"]
[BlackClock "0:02:31"]

1. e4 {[%clk 0:03:00]}  c5 {[%clk 0:02:59]} 2. Nf3 {[%clk 0:03:00]}  Nc6 {[%clk 0:03:00]} 3. d4 {[%clk 0:03:00]}  cxd4 {[%clk 0:03:00]} 4. Nxd4 {[%clk 0:03:00]}  Nf6 {[%clk 0:03:01]} 5. Nc3 {[%clk 0:03:00]}  e5 {[%clk 0:03:01]} 6. Ndb5 {[%clk 0:03:00]}  d6 {[%clk 0:03:01]} 7. Bg5 {[%clk 0:02:59]}  a6 {[%clk 0:03:01]} 8. Na3 {[%clk 0:02:54]}  b5 {[%clk 0:03:01]} 9. Nd5 {[%clk 0:02:54]}  Be7 {[%clk 0:03:01]} 10. Bd3 {[%clk 0:02:51]}  Nxd5 {[%clk 0:02:58]} 11. exd5 {[%clk 0:02:52]}  Bxg5 {[%clk 0:02:53]} 12. dxc6 {[%clk 0:02:52]}  O-O {[%clk 0:02:52]} 13. h4 {[%clk 0:02:50]}  Be7 {[%clk 0:02:49]} 14. h5 {[%clk 0:02:37]}  d5 {[%clk 0:02:48]} 15. f3 {[%clk 0:02:29]}  Bh4+ {[%clk 0:02:43]} 16. Ke2 {[%clk 0:02:27]}  Qg5 {[%clk 0:02:34]} 17. Qd2 {[%clk 0:02:17]}  Qxg2+ {[%clk 0:02:33]} 18. Kd1 {[%clk 0:02:16]}  Qxh1+ {[%clk 0:02:33]} 19. Ke2 {[%clk 0:02:14]}  Qg2+ {[%clk 0:02:32]} 20. Kd1 {[%clk 0:02:14]}  Qxf3+ {[%clk 0:02:31]} 21. Be2 {[%clk 0:02:13]}  Qh1+ {[%clk 0:02:30]} 22. Bf1 {[%clk 0:02:12]}  Qxf1+ {[%clk 0:02:30]} 23. Qe1 {[%clk 0:02:13]}  Qxe1# {[%clk 0:02:31]} 0-1


[Site "https://www.chess.com"]

[Event "Titled Tuesday Blitz November 08 Early 2022"]
[White "Thiel, Thomas"]
[Black "Sovetbekova, Nurai"]
[WhiteFideId "4615964"]
[BlackFideId "13801910"]
[WhiteElo "2209"]
[BlackElo "1925"]
[Result "1-0"]
[Round "06"]
[TimeControl "180+1"]
[Date "2022.11.09"]
[WhiteClock "0:00:04"]
[BlackClock "0:00:04"]

1. e4 {[%clk 0:03:00]}  c5 {[%clk 0:02:56]} 2. Nc3 {[%clk 0:02:59]}  d6 {[%clk 0:02:56]} 3. f4 {[%clk 0:02:57]}  g6 {[%clk 0:02:55]} 4. Nf3 {[%clk 0:02:57]}  Bg7 {[%clk 0:02:56]} 5. Bc4 {[%clk 0:02:57]}  e6 {[%clk 0:02:55]} 6. O-O {[%clk 0:02:55]}  Ne7 {[%clk 0:02:56]} 7. d3 {[%clk 0:02:54]}  Nbc6 {[%clk 0:02:56]} 8. f5 {[%clk 0:02:54]}  exf5 {[%clk 0:02:53]} 9. Qe1 {[%clk 0:02:53]}  fxe4 {[%clk 0:02:48]} 10. dxe4 {[%clk 0:02:53]}  O-O {[%clk 0:02:23]} 11. Qh4 {[%clk 0:02:50]}  h5 {[%clk 0:01:53]} 12. Bg5 {[%clk 0:02:44]}  Be6 {[%clk 0:01:44]} 13. Nd5 {[%clk 0:02:39]}  Bxd5 {[%clk 0:01:39]} 14. Bxd5 {[%clk 0:02:39]}  Qd7 {[%clk 0:01:27]} 15. Bf6 {[%clk 0:02:21]}  Nxd5 {[%clk 0:01:17]} 16. exd5 {[%clk 0:02:18]}  Bxf6 {[%clk 0:01:08]} 17. Qxf6 {[%clk 0:02:19]}  Ne7 {[%clk 0:01:08]} 18. Ng5 {[%clk 0:02:06]}  Nxd5 {[%clk 0:00:54]} 19. Qf3 {[%clk 0:01:59]}  Nb4 {[%clk 0:00:49]} 20. c3 {[%clk 0:01:52]}  Nc6 {[%clk 0:00:49]} 21. Rad1 {[%clk 0:01:49]}  Ne5 {[%clk 0:00:46]} 22. Qd5 {[%clk 0:01:44]}  Qe7 {[%clk 0:00:32]} 23. Ne4 {[%clk 0:01:40]}  Rad8 {[%clk 0:00:30]} 24. Nxd6 {[%clk 0:01:35]}  Ng4 {[%clk 0:00:25]} 25. Qxc5 {[%clk 0:01:26]}  Qe3+ {[%clk 0:00:17]} 26. Qxe3 {[%clk 0:01:24]}  Nxe3 {[%clk 0:00:18]} 27. Rfe1 {[%clk 0:01:17]}  Nxd1 {[%clk 0:00:18]} 28. Rxd1 {[%clk 0:01:17]}  Rd7 {[%clk 0:00:19]} 29. c4 {[%clk 0:01:15]}  b6 {[%clk 0:00:19]} 30. b4 {[%clk 0:01:14]}  Rfd8 {[%clk 0:00:14]} 31. c5 {[%clk 0:01:12]}  bxc5 {[%clk 0:00:15]} 32. bxc5 {[%clk 0:01:13]}  Rc7 {[%clk 0:00:15]} 33. Rd5 {[%clk 0:01:12]}  Kf8 {[%clk 0:00:12]} 34. Kf2 {[%clk 0:01:12]}  Ke7 {[%clk 0:00:12]} 35. Ke3 {[%clk 0:01:12]}  Ke6 {[%clk 0:00:13]} 36. Kd4 {[%clk 0:01:12]}  Rb8 {[%clk 0:00:13]} 37. Re5+ {[%clk 0:01:10]}  Kd7 {[%clk 0:00:13]} 38. Kc4 {[%clk 0:01:09]}  Rb1 {[%clk 0:00:13]} 39. Nb5 {[%clk 0:01:05]}  Rc1+ {[%clk 0:00:12]} 40. Nc3 {[%clk 0:01:05]}  Rc6 {[%clk 0:00:11]} 41. Rd5+ {[%clk 0:01:00]}  Ke6 {[%clk 0:00:10]} 42. Rd2 {[%clk 0:00:59]}  Rf1 {[%clk 0:00:09]} 43. Nd5 {[%clk 0:00:51]}  Rf5 {[%clk 0:00:08]} 44. g3 {[%clk 0:00:49]}  g5 {[%clk 0:00:08]} 45. Rd3 {[%clk 0:00:47]}  Rf1 {[%clk 0:00:08]} 46. Nb4 {[%clk 0:00:43]}  Rc1+ {[%clk 0:00:07]} 47. Kd4 {[%clk 0:00:43]}  R6xc5 {[%clk 0:00:07]} 48. Re3+ {[%clk 0:00:43]}  Kf6 {[%clk 0:00:07]} 49. Nd3 {[%clk 0:00:43]}  R5c4+ {[%clk 0:00:07]} 50. Kd5 {[%clk 0:00:43]}  R4c3 {[%clk 0:00:07]} 51. Rf3+ {[%clk 0:00:39]}  Kg7 {[%clk 0:00:07]} 52. Kd4 {[%clk 0:00:37]}  Rc4+ {[%clk 0:00:07]} 53. Ke5 {[%clk 0:00:36]}  Ra4 {[%clk 0:00:06]} 54. Nxc1 {[%clk 0:00:34]}  Ra5+ {[%clk 0:00:06]} 55. Kd4 {[%clk 0:00:33]}  Ra4+ {[%clk 0:00:06]} 56. Ke3 {[%clk 0:00:33]}  g4 {[%clk 0:00:06]} 57. Rf2 {[%clk 0:00:32]}  Ra3+ {[%clk 0:00:06]} 58. Ke2 {[%clk 0:00:32]}  Rc3 {[%clk 0:00:06]} 59. Kd1 {[%clk 0:00:30]}  Rc4 {[%clk 0:00:05]} 60. Rd2 {[%clk 0:00:29]}  Re4 {[%clk 0:00:05]} 61. Nd3 {[%clk 0:00:28]}  Ra4 {[%clk 0:00:05]} 62. Ne1 {[%clk 0:00:27]}  f5 {[%clk 0:00:05]} 63. Nd3 {[%clk 0:00:25]}  Kf6 {[%clk 0:00:05]} 64. Nf4 {[%clk 0:00:25]}  Kg5 {[%clk 0:00:05]} 65. Rd6 {[%clk 0:00:24]}  Rxf4 {[%clk 0:00:04]} 66. gxf4+ {[%clk 0:00:22]}  Kxf4 {[%clk 0:00:04]} 67. Rd7 {[%clk 0:00:19]}  h4 {[%clk 0:00:04]} 68. Ke2 {[%clk 0:00:18]}  g3 {[%clk 0:00:04]} 69. hxg3+ {[%clk 0:00:18]}  hxg3 {[%clk 0:00:05]} 70. Rxa7 {[%clk 0:00:17]}  Kg4 {[%clk 0:00:05]} 71. Rg7+ {[%clk 0:00:15]}  Kh3 {[%clk 0:00:04]} 72. a4 {[%clk 0:00:14]}  f4 {[%clk 0:00:04]} 73. a5 {[%clk 0:00:13]}  Kh2 {[%clk 0:00:02]} 74. a6 {[%clk 0:00:11]}  g2 {[%clk 0:00:03]} 75. Kf2 {[%clk 0:00:08]}  f3 {[%clk 0:00:02]} 76. a7 {[%clk 0:00:05]}  g1=Q+ {[%clk 0:00:02]} 77. Rxg1 {[%clk 0:00:04]}  Kh3 {[%clk 0:00:03]} 78. Rg3+ {[%clk 0:00:03]}  Kh2 {[%clk 0:00:04]} 79. Rxf3 {[%clk 0:00:03]}  Kh1 {[%clk 0:00:04]} 80. Rh3# {[%clk 0:00:04]} 1-0


[Site "https://www.chess.com"]

[Event "Titled Tuesday Blitz November 08 Early 2022"]
[White "Valle Maytin, Luis Enrique"]
[Black "Carbone, Diego"]
[WhiteFideId "3503666"]
[BlackFideId "3002179"]
[WhiteElo "2225"]
[BlackElo "2265"]
[Result "0-1"]
[Round "06"]
[TimeControl "180+1"]
[Date "2022.11.09"]
[WhiteClock "0:00:10"]
[BlackClock "0:00:46"]

1. e4 {[%clk 0:03:00]}  e5 {[%clk 0:02:59]} 2. Nf3 {[%clk 0:02:56]}  Nc6 {[%clk 0:02:59]} 3. Bb5 {[%clk 0:02:56]}  a6 {[%clk 0:02:59]} 4. Ba4 {[%clk 0:02:57]}  Nf6 {[%clk 0:02:59]} 5. O-O {[%clk 0:02:56]}  Nxe4 {[%clk 0:02:59]} 6. d4 {[%clk 0:02:56]}  Be7 {[%clk 0:02:59]} 7. d5 {[%clk 0:02:49]}  Nc5 {[%clk 0:02:51]} 8. Bb3 {[%clk 0:02:22]}  e4 {[%clk 0:02:51]} 9. dxc6 {[%clk 0:02:18]}  exf3 {[%clk 0:02:51]} 10. cxd7+ {[%clk 0:02:10]}  Qxd7 {[%clk 0:02:47]} 11. Qxf3 {[%clk 0:02:10]}  O-O {[%clk 0:02:47]} 12. Nc3 {[%clk 0:02:04]}  Nxb3 {[%clk 0:02:43]} 13. axb3 {[%clk 0:02:04]}  Qf5 {[%clk 0:02:43]} 14. Qg3 {[%clk 0:01:58]}  Bd6 {[%clk 0:02:41]} 15. Qd3 {[%clk 0:01:49]}  Qxd3 {[%clk 0:02:40]} 16. cxd3 {[%clk 0:01:49]}  Rd8 {[%clk 0:02:33]} 17. Be3 {[%clk 0:01:47]}  Be6 {[%clk 0:02:33]} 18. Rac1 {[%clk 0:01:27]}  Bxb3 {[%clk 0:02:25]} 19. Ne4 {[%clk 0:01:27]}  c6 {[%clk 0:02:00]} 20. Bb6 {[%clk 0:01:16]}  Rd7 {[%clk 0:02:00]} 21. Nxd6 {[%clk 0:01:14]}  Rxd6 {[%clk 0:02:01]} 22. d4 {[%clk 0:01:15]}  Re8 {[%clk 0:01:57]} 23. Rfe1 {[%clk 0:01:12]}  Rde6 {[%clk 0:01:58]} 24. Rxe6 {[%clk 0:01:10]}  Rxe6 {[%clk 0:01:59]} 25. f3 {[%clk 0:01:05]}  Re2 {[%clk 0:01:57]} 26. Rc3 {[%clk 0:01:05]}  Rxb2 {[%clk 0:01:53]} 27. Re3 {[%clk 0:01:03]}  Be6 {[%clk 0:01:53]} 28. Bc5 {[%clk 0:01:00]}  b6 {[%clk 0:01:52]} 29. Bd6 {[%clk 0:00:59]}  a5 {[%clk 0:01:49]} 30. f4 {[%clk 0:00:58]}  h5 {[%clk 0:01:40]} 31. Re5 {[%clk 0:00:50]}  Bd5 {[%clk 0:01:35]} 32. g3 {[%clk 0:00:42]}  a4 {[%clk 0:01:30]} 33. Rxh5 {[%clk 0:00:42]}  g6 {[%clk 0:01:25]} 34. Re5 {[%clk 0:00:41]}  Kg7 {[%clk 0:01:18]} 35. Re7 {[%clk 0:00:38]}  Rg2+ {[%clk 0:01:12]} 36. Kf1 {[%clk 0:00:38]}  Rxh2 {[%clk 0:01:12]} 37. Be5+ {[%clk 0:00:37]}  Kf8 {[%clk 0:01:08]} 38. Bd6 {[%clk 0:00:37]}  Kg7 {[%clk 0:01:03]} 39. Be5+ {[%clk 0:00:36]}  Kf8 {[%clk 0:00:57]} 40. Bd6 {[%clk 0:00:36]}  Kg8 {[%clk 0:00:50]} 41. Be5 {[%clk 0:00:32]}  f6 {[%clk 0:00:48]} 42. Bxf6 {[%clk 0:00:28]}  a3 {[%clk 0:00:46]} 43. Rg7+ {[%clk 0:00:18]}  Kf8 {[%clk 0:00:46]} 44. Ra7 {[%clk 0:00:14]}  a2 {[%clk 0:00:46]} 45. Be7+ {[%clk 0:00:11]}  Ke8 {[%clk 0:00:46]} 46. Bf6 {[%clk 0:00:10]}  a1=Q+ {[%clk 0:00:45]} 47. Rxa1 {[%clk 0:00:09]}  Rh1+ {[%clk 0:00:46]} 48. Kf2 {[%clk 0:00:10]}  Rxa1 {[%clk 0:00:46]} 0-1


[Site "https://www.chess.com"]

[Event "Titled Tuesday Blitz November 08 Early 2022"]
[White "Volkov, Maksim"]
[Black "Terry, Renato"]
[WhiteFideId "54123070"]
[BlackFideId "3803457"]
[WhiteElo "2257"]
[BlackElo "2577"]
[Result "0-1"]
[Round "06"]
[TimeControl "180+1"]
[Date "2022.11.09"]
[WhiteClock "0:00:14"]
[BlackClock "0:00:36"]

1. d4 {[%clk 0:03:00]}  Nf6 {[%clk 0:02:58]} 2. c4 {[%clk 0:02:59]}  d6 {[%clk 0:02:59]} 3. Nf3 {[%clk 0:02:58]}  Nbd7 {[%clk 0:03:00]} 4. Nc3 {[%clk 0:02:58]}  e5 {[%clk 0:03:00]} 5. g3 {[%clk 0:02:59]}  h5 {[%clk 0:02:57]} 6. Bg2 {[%clk 0:02:57]}  exd4 {[%clk 0:02:55]} 7. Qxd4 {[%clk 0:02:46]}  Be7 {[%clk 0:02:55]} 8. O-O {[%clk 0:02:45]}  Nc5 {[%clk 0:02:56]} 9. b3 {[%clk 0:02:44]}  Bf5 {[%clk 0:02:49]} 10. Bb2 {[%clk 0:02:41]}  Qd7 {[%clk 0:02:49]} 11. Rfd1 {[%clk 0:02:39]}  Bh3 {[%clk 0:02:45]} 12. Bh1 {[%clk 0:02:30]}  Qg4 {[%clk 0:02:39]} 13. Qxg4 {[%clk 0:02:20]}  Bxg4 {[%clk 0:02:40]} 14. Rac1 {[%clk 0:02:09]}  c6 {[%clk 0:02:38]} 15. Ba3 {[%clk 0:02:03]}  O-O-O {[%clk 0:02:33]} 16. Bg2 {[%clk 0:01:59]}  Ne6 {[%clk 0:02:04]} 17. Ne5 {[%clk 0:01:49]}  Rhf8 {[%clk 0:02:02]} 18. Nxg4 {[%clk 0:01:47]}  hxg4 {[%clk 0:02:03]} 19. h3 {[%clk 0:01:46]}  Rh8 {[%clk 0:01:59]} 20. hxg4 {[%clk 0:01:42]}  Nxg4 {[%clk 0:02:00]} 21. Ne4 {[%clk 0:01:41]}  Kc7 {[%clk 0:02:00]} 22. Bb2 {[%clk 0:01:18]}  f5 {[%clk 0:01:59]} 23. Nc3 {[%clk 0:01:14]}  Kb8 {[%clk 0:01:36]} 24. e3 {[%clk 0:01:13]}  Bf6 {[%clk 0:01:35]} 25. Na4 {[%clk 0:01:11]}  g5 {[%clk 0:01:30]} 26. Bxf6 {[%clk 0:01:04]}  Nxf6 {[%clk 0:01:31]} 27. Rc2 {[%clk 0:00:59]}  Kc7 {[%clk 0:01:19]} 28. b4 {[%clk 0:00:59]}  f4 {[%clk 0:01:15]} 29. b5 {[%clk 0:00:42]}  fxg3 {[%clk 0:01:10]} 30. bxc6 {[%clk 0:00:42]}  bxc6 {[%clk 0:01:09]} 31. fxg3 {[%clk 0:00:42]}  Ng4 {[%clk 0:01:08]} 32. Re2 {[%clk 0:00:35]}  Rde8 {[%clk 0:01:02]} 33. e4 {[%clk 0:00:32]}  Ne5 {[%clk 0:01:00]} 34. c5 {[%clk 0:00:29]}  dxc5 {[%clk 0:00:59]} 35. Rc2 {[%clk 0:00:28]}  c4 {[%clk 0:01:00]} 36. Nb2 {[%clk 0:00:26]}  Rd8 {[%clk 0:00:58]} 37. Rdc1 {[%clk 0:00:24]}  Nd4 {[%clk 0:00:57]} 38. Rf2 {[%clk 0:00:20]}  Rh7 {[%clk 0:00:52]} 39. Bf1 {[%clk 0:00:19]}  Nef3+ {[%clk 0:00:50]} 40. Rxf3 {[%clk 0:00:16]}  Nxf3+ {[%clk 0:00:51]} 41. Kf2 {[%clk 0:00:17]}  Nd2 {[%clk 0:00:37]} 42. Ke3 {[%clk 0:00:14]}  Rh1 {[%clk 0:00:36]} 0-1


[Site "https://www.chess.com"]

[Event "Titled Tuesday Blitz November 08 Early 2022"]
[White "Wagner, Dennis"]
[Black "Janaszak, Dawid"]
[WhiteFideId "24650684"]
[BlackFideId "1119206"]
[WhiteElo "2470"]
[BlackElo "2226"]
[Result "1-0"]
[Round "06"]
[TimeControl "180+1"]
[Date "2022.11.09"]
[WhiteClock "0:00:12"]
[BlackClock "0:00:09"]

1. e4 {[%clk 0:03:00]}  e5 {[%clk 0:02:56]} 2. Nf3 {[%clk 0:03:00]}  Nc6 {[%clk 0:02:56]} 3. Bc4 {[%clk 0:03:01]}  Nf6 {[%clk 0:02:55]} 4. d3 {[%clk 0:03:01]}  d5 {[%clk 0:02:55]} 5. exd5 {[%clk 0:02:58]}  Nxd5 {[%clk 0:02:56]} 6. O-O {[%clk 0:02:59]}  Nb6 {[%clk 0:02:55]} 7. Bb5 {[%clk 0:02:58]}  Bd6 {[%clk 0:02:55]} 8. Re1 {[%clk 0:02:57]}  f6 {[%clk 0:02:53]} 9. d4 {[%clk 0:02:57]}  O-O {[%clk 0:02:48]} 10. Bxc6 {[%clk 0:02:45]}  bxc6 {[%clk 0:02:49]} 11. dxe5 {[%clk 0:02:45]}  fxe5 {[%clk 0:02:49]} 12. Ng5 {[%clk 0:02:02]}  Bf5 {[%clk 0:02:18]} 13. Nc3 {[%clk 0:01:57]}  Qe8 {[%clk 0:02:09]} 14. Nge4 {[%clk 0:01:54]}  Qg6 {[%clk 0:02:06]} 15. Qf3 {[%clk 0:01:43]}  Rad8 {[%clk 0:01:49]} 16. Qg3 {[%clk 0:01:37]}  Nd5 {[%clk 0:01:39]} 17. Qxg6 {[%clk 0:01:36]}  Bxg6 {[%clk 0:01:40]} 18. Bg5 {[%clk 0:01:34]}  Rb8 {[%clk 0:01:39]} 19. Nxd5 {[%clk 0:01:13]}  cxd5 {[%clk 0:01:38]} 20. Nxd6 {[%clk 0:01:13]}  cxd6 {[%clk 0:01:38]} 21. Be7 {[%clk 0:01:14]}  Rfc8 {[%clk 0:01:28]} 22. Bxd6 {[%clk 0:01:11]}  Rxb2 {[%clk 0:01:28]} 23. Bxe5 {[%clk 0:01:12]}  Rbxc2 {[%clk 0:01:27]} 24. a4 {[%clk 0:01:05]}  Rd2 {[%clk 0:00:56]} 25. a5 {[%clk 0:00:55]}  d4 {[%clk 0:00:55]} 26. a6 {[%clk 0:00:55]}  d3 {[%clk 0:00:55]} 27. Bd4 {[%clk 0:00:53]}  Rdc2 {[%clk 0:00:43]} 28. Bxa7 {[%clk 0:00:37]}  d2 {[%clk 0:00:43]} 29. Red1 {[%clk 0:00:37]}  Bd3 {[%clk 0:00:16]} 30. Be3 {[%clk 0:00:32]}  Rc1 {[%clk 0:00:16]} 31. a7 {[%clk 0:00:21]}  Be4 {[%clk 0:00:05]} 32. Rdxc1 {[%clk 0:00:14]}  dxc1=Q+ {[%clk 0:00:05]} 33. Rxc1 {[%clk 0:00:14]}  Rxc1+ {[%clk 0:00:04]} 34. Bxc1 {[%clk 0:00:15]}  Kf7 {[%clk 0:00:05]} 35. f3 {[%clk 0:00:16]}  Bb7 {[%clk 0:00:04]} 36. Kf2 {[%clk 0:00:17]}  Ke6 {[%clk 0:00:04]} 37. Ke3 {[%clk 0:00:17]}  Kd5 {[%clk 0:00:04]} 38. Kf4 {[%clk 0:00:15]}  g6 {[%clk 0:00:04]} 39. h4 {[%clk 0:00:12]}  Ke6 {[%clk 0:00:04]} 40. Kg5 {[%clk 0:00:12]}  Kf7 {[%clk 0:00:04]} 41. Kh6 {[%clk 0:00:13]}  Kg8 {[%clk 0:00:05]} 42. Bb2 {[%clk 0:00:12]}  Bc6 {[%clk 0:00:05]} 43. Bc3 {[%clk 0:00:13]}  Bb7 {[%clk 0:00:06]} 44. h5 {[%clk 0:00:12]}  gxh5 {[%clk 0:00:05]} 45. Kxh5 {[%clk 0:00:13]}  Bc6 {[%clk 0:00:06]} 46. Kg5 {[%clk 0:00:14]}  Bb7 {[%clk 0:00:06]} 47. Kf6 {[%clk 0:00:15]}  h5 {[%clk 0:00:07]} 48. Ke7 {[%clk 0:00:13]}  h4 {[%clk 0:00:07]} 49. Be1 {[%clk 0:00:11]}  h3 {[%clk 0:00:07]} 50. gxh3 {[%clk 0:00:11]}  Bxf3 {[%clk 0:00:07]} 51. Kd7 {[%clk 0:00:11]}  Kh7 {[%clk 0:00:07]} 52. Kc7 {[%clk 0:00:11]}  Kg6 {[%clk 0:00:08]} 53. Kb8 {[%clk 0:00:11]}  Kh5 {[%clk 0:00:09]} 54. a8=Q {[%clk 0:00:12]} 1-0


[Site "https://www.chess.com"]

[Event "Titled Tuesday Blitz November 08 Early 2022"]
[White "Winkels, Marcel"]
[Black "Zaichenko, Daria"]
[WhiteFideId "1003887"]
[BlackFideId "4197453"]
[WhiteElo "1900"]
[BlackElo "2039"]
[Result "0-1"]
[Round "06"]
[TimeControl "180+1"]
[Date "2022.11.09"]
[WhiteClock "0:00:03"]
[BlackClock "0:00:31"]

1. e4 {[%clk 0:03:00]}  c5 {[%clk 0:02:59]} 2. Nf3 {[%clk 0:02:59]}  Nc6 {[%clk 0:02:59]} 3. Bc4 {[%clk 0:02:58]}  e6 {[%clk 0:02:39]} 4. O-O {[%clk 0:02:56]}  d5 {[%clk 0:02:32]} 5. Bb5 {[%clk 0:02:55]}  Nf6 {[%clk 0:02:29]} 6. Ne5 {[%clk 0:02:42]}  Bd7 {[%clk 0:02:24]} 7. Bxc6 {[%clk 0:02:28]}  bxc6 {[%clk 0:02:21]} 8. exd5 {[%clk 0:02:24]}  cxd5 {[%clk 0:02:19]} 9. Nc3 {[%clk 0:02:07]}  Bd6 {[%clk 0:02:15]} 10. d4 {[%clk 0:01:59]}  h6 {[%clk 0:02:06]} 11. Bf4 {[%clk 0:01:41]}  Qc7 {[%clk 0:01:58]} 12. Re1 {[%clk 0:01:39]}  O-O {[%clk 0:01:50]} 13. dxc5 {[%clk 0:01:32]}  Qxc5 {[%clk 0:01:45]} 14. Nxd7 {[%clk 0:01:29]}  Nxd7 {[%clk 0:01:43]} 15. Bg3 {[%clk 0:01:28]}  Bxg3 {[%clk 0:01:41]} 16. hxg3 {[%clk 0:01:27]}  Nf6 {[%clk 0:01:37]} 17. Qd3 {[%clk 0:01:13]}  Rfe8 {[%clk 0:01:29]} 18. Rad1 {[%clk 0:01:10]}  Rad8 {[%clk 0:01:19]} 19. Qb5 {[%clk 0:01:06]}  Qxb5 {[%clk 0:01:15]} 20. Nxb5 {[%clk 0:01:04]}  Rb8 {[%clk 0:01:15]} 21. a4 {[%clk 0:00:55]}  a6 {[%clk 0:01:15]} 22. Nc7 {[%clk 0:00:54]}  Rec8 {[%clk 0:01:11]} 23. Nxa6 {[%clk 0:00:52]}  Rb6 {[%clk 0:01:04]} 24. b3 {[%clk 0:00:15]}  Rxa6 {[%clk 0:01:03]} 25. Re2 {[%clk 0:00:15]}  Rac6 {[%clk 0:01:02]} 26. Rdd2 {[%clk 0:00:14]}  Ne4 {[%clk 0:01:00]} 27. Rd3 {[%clk 0:00:13]}  Rxc2 {[%clk 0:00:59]} 28. Rde3 {[%clk 0:00:12]}  Rxe2 {[%clk 0:00:58]} 29. Rxe2 {[%clk 0:00:11]}  Rb8 {[%clk 0:00:57]} 30. Rb2 {[%clk 0:00:11]}  Nc5 {[%clk 0:00:55]} 31. a5 {[%clk 0:00:06]}  Nd3 {[%clk 0:00:50]} 32. Rb1 {[%clk 0:00:05]}  Rb5 {[%clk 0:00:47]} 33. a6 {[%clk 0:00:04]}  Ra5 {[%clk 0:00:46]} 34. Rd1 {[%clk 0:00:03]}  Nb4 {[%clk 0:00:31]} 0-1


[Site "https://www.chess.com"]